fUSD/lending_fUSD_20240519
["ID","MTS","AMOUNT","RATE_DAILY","PERIOD"]
[327497845,1716125498297,-762.51,0.00029655,2]
[327497846,1716125498306,-1281.27,0.00029655,2]
[327497847,1716125498315,-1187.11,0.00029655,2]
[327497848,1716125498327,-820.48,0.00029655,2]
[327497849,1716125498336,-1052.6,0.00029655,2]
[327497850,1716125498346,-763.43,0.00029655,2]
[327497851,1716125498355,-1150.72,0.00029655,2]
[327497852,1716125498365,-1211.58,0.00029655,2]
[327497853,1716125498374,-3667.38,0.00029655,2]
[327497854,1716125498385,-986.86,0.00029655,2]
[327497855,1716125498394,-740.89,0.00029655,2]
[327497856,1716125498405,-500.0,0.00029655,2]
[327497857,1716125498415,-533.27,0.00029655,2]
[327497858,1716125498424,-975.8,0.00029655,2]
[327497859,1716125498434,-1384.87,0.00029655,2]
[327497860,1716125498443,-1006.42,0.00029655,2]
[327497861,1716125498453,-2304.66,0.00029655,2]
[327497862,1716125498464,-2722.15,0.00029655,2]
[327497863,1716125498474,-3116.58,0.00029655,2]
[327497864,1716125498486,-500.0,0.00029655,2]
[327497865,1716125498495,-942.59,0.00029655,2]
[327497866,1716125498504,-15816.75,0.00029655,2]
[327497867,1716125498514,-849.34,0.00029655,2]
[327497868,1716125498523,-1608.23,0.00029655,2]
[327497869,1716125498532,-203.7,0.00029655,2]
[327497870,1716125498541,-9478.72,0.00029655,2]
[327497871,1716125498550,-500.0,0.00029657,7]
[327497872,1716125498559,-606.15,0.00029657,2]
[327497873,1716125498570,-815.2,0.00029657,2]
[327497874,1716125498581,-615.48,0.00029657,2]
[327497875,1716125498591,-725.95,0.00029657,2]
[327497876,1716125498600,-988.92,0.00029657,2]
[327497877,1716125498610,-500.0,0.00029657,2]
[327497878,1716125498620,-780.74,0.00029657,2]
[327497879,1716125498629,-619.66,0.00029657,2]
[327497880,1716125498639,-500.0,0.00029657,2]
[327497881,1716125498648,-500.0,0.00029657,2]
[327497882,1716125498658,-846.91,0.00029657,2]
[327497883,1716125498668,-982.33,0.00029657,2]
[327497884,1716125498677,-600.61385047,0.00029657,2]
[327497885,1716125498686,-1644.32,0.00029657,2]
[327497886,1716125498696,-1782.9,0.00029657,2]
[327497887,1716125498705,-200.87734748,0.00029657,2]
[327497888,1716125498715,-700.7,0.00029657,2]
[327497889,1716125498725,-1923.11,0.00029657,2]
[327497890,1716125498735,-1095.98,0.00029657,2]
[327497891,1716125498745,-1383.57,0.00029657,2]
[327497892,1716125498755,-1151.71,0.00029657,2]
[327497893,1716125498766,-1219.6,0.00029657,2]
[327497894,1716125498775,-848.32,0.00029657,2]
[327497895,1716125498785,-777.11,0.00029657,2]
[327497896,1716125498794,-1055.0,0.00029657,2]
[327497897,1716125498804,-500.0,0.00029657,2]
[327497898,1716125498814,-512.59,0.00029657,2]
[327497899,1716125498825,-541.07,0.00029657,2]
[327497900,1716125498834,-828.51,0.00029657,2]
[327497901,1716125498843,-989.78,0.00029657,2]
[327497902,1716125498852,-1162.85,0.00029657,2]
[327497903,1716125498862,-540.7,0.00029657,2]
[327497904,1716125498871,-3682.75,0.00029657,2]
[327497905,1716125498881,-1892.05,0.00029657,2]
[327497906,1716125498891,-1015.08,0.00029657,2]
[327497907,1716125498900,-878.61,0.00029657,2]
[327497908,1716125498909,-871.12,0.00029657,2]
[327497909,1716125498919,-500.0,0.00029657,2]
[327497910,1716125498928,-1467.74,0.00029657,2]
[327497911,1716125498938,-500.0,0.00029657,2]
[327497912,1716125498948,-1893.57,0.00029657,2]
[327497913,1716125498957,-533.14,0.00029657,2]
[327497914,1716125498966,-500.0,0.00029657,2]
[327497915,1716125498976,-656.36,0.00029657,2]
[327497916,1716125498985,-615.22,0.00029657,2]
[327497917,1716125498995,-810.74,0.00029657,2]
[327497918,1716125499005,-997.13,0.00029657,2]
[327497919,1716125499014,-837.85,0.00029657,2]
[327497920,1716125499024,-674.79,0.00029657,2]
[327497921,1716125499034,-2150.8,0.00029657,2]
[327497922,1716125499044,-827.03,0.00029657,2]
[327497923,1716125499054,-2747.6,0.00029657,2]
[327497924,1716125499063,-1069.79,0.00029657,2]
[327497925,1716125499073,-4457.98,0.00029657,2]
[327497926,1716125499083,-925.95,0.00029657,2]
[327497927,1716125499092,-896.89,0.00029657,2]
[327497928,1716125499101,-997.04,0.00029657,2]
[327497929,1716125499110,-6546.3,0.00029657,2]
[327497930,1716125499119,-744.57,0.00029657,2]
[327497931,1716125499129,-1036.81,0.00029657,2]
[327497932,1716125499138,-500.0,0.00029657,2]
[327497933,1716125499147,-500.0,0.00029657,2]
[327497934,1716125499157,-2745.43,0.00029657,2]
[327497935,1716125499167,-462.32726939,0.00029657,2]
[327497936,1716125499181,-521.3,0.00029657,2]
[327497937,1716125499191,-1015.07,0.00029657,2]
[327497938,1716125499201,-474.14409693,0.00029668,7]
[327497939,1716125499210,-154.10962397,0.00029668,7]
[327497940,1716125499222,-173.75382498,0.00029668,7]
[327497941,1716125499232,-474.14409693,0.000297,7]
[327497942,1716125499241,-154.10962397,0.000297,7]
[327497943,1716125499252,-173.75382498,0.000297,7]
[327497944,1716125499262,-150.0,0.00029704,7]
[327497945,1716125499272,-984.13315849,0.00029726,30]
[327497946,1716125499282,-474.14409693,0.00029732,7]
[327497947,1716125499291,-154.10962397,0.00029732,7]
[327497948,1716125499301,-173.75382498,0.00029732,7]
[327497949,1716125499311,-150.0,0.00029742,7]
[327497950,1716125499321,-474.14409693,0.00029764,7]
[327497951,1716125499332,-154.10962397,0.00029764,7]
[327497952,1716125499342,-173.75382498,0.00029764,7]
[327497953,1716125499352,-302.0,0.00029772,4]
[327497954,1716125499362,-474.14409693,0.00029796,7]
[327497955,1716125499371,-154.10962397,0.00029796,7]
[327497956,1716125499381,-173.75382498,0.00029796,7]
[327497957,1716125499390,-206.0,0.0002981,2]
[327497958,1716125499399,-219.0,0.0002981,2]
[327497959,1716125499409,-474.14409693,0.00029828,7]
[327497960,1716125499418,-154.10962397,0.00029828,7]
[327497961,1716125499577,-173.75382498,0.00029828,7]
[327497962,1716125499587,-984.13315849,0.00029836,30]
[327497963,1716125499596,-1226.0,0.00029841,2]
[327497964,1716125499606,-809.0,0.00029841,2]
[327497965,1716125499615,-444.0,0.00029841,2]
[327497966,1716125499625,-1645.0,0.00029841,2]
[327497967,1716125499635,-1129.0,0.00029841,2]
[327497968,1716125499645,-235.109,0.00029841,2]
[327497969,1716125499654,-2160.0,0.00029841,2]
[327497970,1716125499663,-1047.0,0.00029841,2]
[327497971,1716125499673,-150.0,0.00029844,7]
[327497972,1716125499682,-474.14409693,0.0002986,7]
[327497973,1716125499692,-154.10962397,0.0002986,7]
[327497974,1716125499701,-173.75382498,0.0002986,7]
[327497975,1716125499712,-2000.0,0.00029863,2]
[327497976,1716125499724,-500.0,0.00029878,2]
[327497977,1716125499735,-500.0,0.00029878,2]
[327497978,1716125499746,-500.0,0.00029878,2]
[327497979,1716125499756,-500.0,0.00029878,2]
[327497980,1716125499766,-500.0,0.00029878,2]
[327497981,1716125499776,-500.0,0.00029878,2]
[327497982,1716125499786,-674.97,0.00029878,2]
[327497983,1716125499796,-500.0,0.00029878,2]
[327497984,1716125499806,-838.37,0.00029878,2]
[327497985,1716125499815,-4449.99,0.00029878,2]
[327497986,1716125499826,-522.1,0.00029878,2]
[327497987,1716125499836,-2017.93,0.00029879,2]
[327497988,1716125499845,-500.0,0.00029881,2]
[327497989,1716125499855,-500.0,0.00029881,2]
[327497990,1716125499864,-500.0,0.00029881,2]
[327497991,1716125499873,-500.0,0.00029881,2]
[327497992,1716125499883,-474.14409693,0.00029892,7]
[327497993,1716125499892,-154.10962397,0.00029892,7]
[327497994,1716125499902,-173.75382498,0.00029892,7]
[327497995,1716125499911,-150.0,0.00029902,7]
[327497996,1716125499921,-474.14409693,0.00029924,7]
[327497997,1716125499930,-154.10962397,0.00029924,7]
[327497998,1716125499940,-173.75382498,0.00029924,7]
[327497999,1716125499949,-657.56,0.00029929,2]
[327498000,1716125499959,-506.18,0.00029929,2]
[327498001,1716125499969,-500.0,0.00029929,2]
[327498002,1716125499979,-500.0,0.00029929,2]
[327498003,1716125499989,-879.12,0.00029929,2]
[327498004,1716125499999,-671.24,0.00029929,2]
[327498005,1716125500009,-609.43,0.00029929,2]
[327498006,1716125500019,-2500.45,0.00029929,2]
[327498007,1716125500029,-843.99,0.00029929,2]
[327498008,1716125500038,-500.0,0.00029929,2]
[327498009,1716125500048,-568.61,0.00029929,2]
[327498010,1716125500058,-817.19,0.00029929,2]
[327498011,1716125500067,-500.0,0.00029929,2]
[327498012,1716125500077,-854.39,0.00029929,2]
[327498013,1716125500087,-666.0,0.00029929,2]
[327498014,1716125500097,-637.12,0.00029929,2]
[327498015,1716125500107,-857.61,0.00029929,2]
[327498016,1716125500117,-518.83,0.00029929,2]
[327498017,1716125500127,-726.23,0.00029929,2]
[327498018,1716125500136,-762.51,0.00029929,2]
[327498019,1716125500145,-1281.27,0.00029929,2]
[327498020,1716125500155,-1187.11,0.00029929,2]
[327498021,1716125500164,-820.48,0.00029929,2]
[327498022,1716125500176,-1052.6,0.00029929,2]
[327498023,1716125500185,-763.43,0.00029929,2]
[327498024,1716125500195,-1150.72,0.00029929,2]
[327498025,1716125500205,-1211.58,0.00029929,2]
[327498026,1716125500227,-3667.38,0.00029929,2]
[327498027,1716125500237,-986.86,0.00029929,2]
[327498028,1716125500248,-740.89,0.00029929,2]
[327498029,1716125500259,-500.0,0.00029929,2]
[327498030,1716125500269,-533.27,0.00029929,2]
[327498031,1716125500279,-975.8,0.00029929,2]
[327498032,1716125500289,-1384.87,0.00029929,2]
[327498033,1716125500299,-1006.42,0.00029929,2]
[327498034,1716125500308,-2304.66,0.00029929,2]
[327498035,1716125500318,-2722.15,0.00029929,2]
[327498036,1716125500330,-3116.58,0.00029929,2]
[327498037,1716125500340,-500.0,0.00029929,2]
[327498038,1716125500350,-942.59,0.00029929,2]
[327498039,1716125500360,-15816.75,0.00029929,2]
[327498040,1716125500370,-849.34,0.00029929,2]
[327498041,1716125500380,-1608.23,0.00029929,2]
[327498042,1716125500389,-9478.72,0.00029929,2]
[327498043,1716125500399,-500.0,0.00029931,7]
[327498044,1716125500410,-606.15,0.00029931,2]
[327498045,1716125500420,-815.2,0.00029931,2]
[327498046,1716125500430,-615.48,0.00029931,2]
[327498047,1716125500440,-725.95,0.00029931,2]
[327498048,1716125500449,-988.92,0.00029931,2]
[327498049,1716125500459,-298.18333302,0.00029931,2]
[327498050,1716125500468,-780.74,0.00029931,2]
[327498051,1716125500479,-619.66,0.00029931,2]
[327498052,1716125500489,-500.0,0.00029931,2]
[327498053,1716125500499,-432.04816575,0.00029931,2]
[327498054,1716125500509,-846.91,0.00029931,2]
[327498055,1716125500519,-982.33,0.00029931,2]
[327498056,1716125500528,-1644.32,0.00029931,2]
[327498057,1716125500538,-1782.9,0.00029931,2]
[327498058,1716125500548,-700.7,0.00029931,2]
[327498059,1716125500558,-1923.11,0.00029931,2]
[327498060,1716125500568,-1095.98,0.00029931,2]
[327498061,1716125500580,-1383.57,0.00029931,2]
[327498062,1716125500590,-1151.71,0.00029931,2]
[327498063,1716125500600,-1219.6,0.00029931,2]
[327498064,1716125500610,-848.32,0.00029931,2]
[327498065,1716125500620,-777.11,0.00029931,2]
[327498066,1716125500631,-1055.0,0.00029931,2]
[327498067,1716125500641,-500.0,0.00029931,2]
[327498068,1716125500650,-512.59,0.00029931,2]
[327498069,1716125500661,-541.07,0.00029931,2]
[327498070,1716125500670,-828.51,0.00029931,2]
[327498071,1716125500680,-989.78,0.00029931,2]
[327498072,1716125500690,-1162.85,0.00029931,2]
[327498073,1716125500700,-540.7,0.00029931,2]
[327498074,1716125500710,-3682.75,0.00029931,2]
[327498075,1716125500720,-1892.05,0.00029931,2]
[327498076,1716125500730,-1015.08,0.00029931,2]
[327498077,1716125500739,-878.61,0.00029931,2]
[327498078,1716125500750,-871.12,0.00029931,2]
[327498079,1716125500759,-500.0,0.00029931,2]
[327498080,1716125500770,-1467.74,0.00029931,2]
[327498081,1716125500780,-500.0,0.00029931,2]
[327498082,1716125500790,-1893.57,0.00029931,2]
[327498083,1716125500799,-533.14,0.00029931,2]
[327498084,1716125500808,-500.0,0.00029931,2]
[327498085,1716125500819,-656.36,0.00029931,2]
[327498086,1716125500830,-615.22,0.00029931,2]
[327498087,1716125500840,-810.74,0.00029931,2]
[327498088,1716125500849,-997.13,0.00029931,2]
[327498089,1716125500858,-837.85,0.00029931,2]
[327498090,1716125500868,-674.79,0.00029931,2]
[327498091,1716125500877,-2150.8,0.00029931,2]
[327498092,1716125500887,-827.03,0.00029931,2]
[327498093,1716125500897,-2747.6,0.00029931,2]
[327498094,1716125500907,-1069.79,0.00029931,2]
[327498095,1716125500916,-4457.98,0.00029931,2]
[327498096,1716125500926,-925.95,0.00029931,2]
[327498097,1716125500936,-896.89,0.00029931,2]
[327498098,1716125500946,-997.04,0.00029931,2]
[327498099,1716125500956,-6546.3,0.00029931,2]
[327498100,1716125500965,-744.57,0.00029931,2]
[327498101,1716125500975,-1036.81,0.00029931,2]
[327498102,1716125500985,-276.38046835,0.00029931,2]
[327498103,1716125500994,-500.0,0.00029931,2]
[327498104,1716125501004,-2745.43,0.00029931,2]
[327498105,1716125501014,-521.3,0.00029931,2]
[327498106,1716125501024,-1015.07,0.00029931,2]
[327498107,1716125501034,-500.0,0.00029933,2]
[327498108,1716125501043,-500.0,0.00029933,2]
[327498109,1716125501054,-500.0,0.00029933,2]
[327498110,1716125501063,-500.0,0.00029933,2]
[327498111,1716125501073,-500.0,0.00029933,2]
[327498112,1716125501085,-500.0,0.00029933,2]
[327498113,1716125501094,-500.0,0.00029933,2]
[327498114,1716125501103,-500.0,0.00029933,2]
[327498115,1716125501112,-500.0,0.00029933,2]
[327498116,1716125501122,-500.0,0.00029933,2]
[327498117,1716125501131,-500.0,0.00029933,2]
[327498118,1716125501140,-500.0,0.00029933,2]
[327498119,1716125501149,-500.0,0.00029933,2]
[327498120,1716125501158,-500.0,0.00029933,2]
[327498121,1716125501168,-500.0,0.00029933,2]
[327498122,1716125501181,-500.0,0.00029933,2]
[327498123,1716125501190,-500.0,0.00029933,2]
[327498124,1716125501200,-500.0,0.00029933,2]
[327498125,1716125501209,-500.0,0.00029933,2]
[327498126,1716125501219,-500.0,0.00029933,2]
[327498127,1716125501228,-500.0,0.00029933,2]
[327498128,1716125501238,-500.0,0.00029933,2]
[327498129,1716125501248,-500.0,0.00029933,2]
[327498130,1716125501258,-500.0,0.00029933,2]
[327498131,1716125501267,-500.0,0.00029933,2]
[327498132,1716125501276,-500.0,0.00029933,2]
[327498133,1716125501290,-500.0,0.00029933,2]
[327498134,1716125501299,-500.0,0.00029933,2]
[327498135,1716125501308,-500.0,0.00029933,2]
[327498136,1716125501317,-500.0,0.00029933,2]
[327498137,1716125501328,-500.0,0.00029933,2]
[327498138,1716125501338,-500.0,0.00029933,2]
[327498139,1716125501347,-500.0,0.00029933,2]
[327498140,1716125501357,-500.0,0.00029933,2]
[327498141,1716125501366,-500.0,0.00029933,2]
[327498142,1716125501376,-500.0,0.00029933,2]
[327498143,1716125501386,-500.0,0.00029933,2]
[327498144,1716125501395,-500.0,0.00029933,2]
[327498145,1716125501405,-500.0,0.00029933,2]
[327498146,1716125501414,-500.0,0.00029933,2]
[327498147,1716125501423,-500.0,0.00029933,2]
[327498148,1716125501432,-500.0,0.00029933,2]
[327498149,1716125501441,-500.0,0.00029933,2]
[327498150,1716125501450,-500.0,0.00029933,2]
[327498151,1716125501459,-500.0,0.00029933,2]
[327498152,1716125501468,-500.0,0.00029933,2]
[327498153,1716125501478,-500.0,0.00029933,2]
[327498154,1716125501486,-500.0,0.00029933,2]
[327498155,1716125501496,-500.0,0.00029933,2]
[327498156,1716125501505,-500.0,0.00029933,2]
[327498157,1716125501514,-500.0,0.00029933,2]
[327498158,1716125501523,-500.0,0.00029933,2]
[327498159,1716125501532,-500.0,0.00029933,2]
[327498160,1716125501541,-500.0,0.00029933,2]
[327498161,1716125501551,-500.0,0.00029933,2]
[327498162,1716125501560,-500.0,0.00029933,2]
[327498163,1716125501570,-500.0,0.00029933,2]
[327498164,1716125501580,-500.0,0.00029933,2]
[327498165,1716125501589,-500.0,0.00029933,2]
[327498166,1716125501599,-500.0,0.00029933,2]
[327498167,1716125501608,-500.0,0.00029933,2]
[327498168,1716125501618,-500.0,0.00029933,2]
[327498169,1716125501627,-500.0,0.00029933,2]
[327498170,1716125501636,-500.0,0.00029933,2]
[327498171,1716125501645,-500.0,0.00029933,2]
[327498172,1716125501655,-500.0,0.00029933,2]
[327498173,1716125501664,-500.0,0.00029933,2]
[327498174,1716125501673,-500.0,0.00029933,2]
[327498175,1716125501683,-500.0,0.00029933,2]
[327498176,1716125501692,-500.0,0.00029933,2]
[327498177,1716125501701,-500.0,0.00029933,2]
[327498178,1716125501710,-500.0,0.00029933,2]
[327498179,1716125501719,-500.0,0.00029933,2]
[327498180,1716125501729,-500.0,0.00029933,2]
[327498181,1716125501739,-500.0,0.00029933,2]
[327498182,1716125501748,-500.0,0.00029933,2]
[327498183,1716125501758,-500.0,0.00029933,2]
[327498184,1716125501768,-500.0,0.00029933,2]
[327498185,1716125501777,-500.0,0.00029933,2]
[327498186,1716125501787,-500.0,0.00029933,2]
[327498187,1716125501796,-500.0,0.00029933,2]
[327498188,1716125501805,-500.0,0.00029933,2]
[327498189,1716125501815,-500.0,0.00029933,2]
[327498190,1716125501824,-500.0,0.00029933,2]
[327498191,1716125501835,-500.0,0.00029933,2]
[327498192,1716125501844,-500.0,0.00029933,2]
[327498193,1716125501853,-500.0,0.00029933,2]
[327498194,1716125501863,-500.0,0.00029933,2]
[327498195,1716125501872,-500.0,0.00029933,2]
[327498196,1716125501881,-500.0,0.00029933,2]
[327498197,1716125501891,-500.0,0.00029933,2]
[327498198,1716125501900,-500.0,0.00029933,2]
[327498199,1716125501909,-500.0,0.00029933,2]
[327498200,1716125501919,-500.0,0.00029933,2]
[327498201,1716125501928,-500.0,0.00029933,2]
[327498202,1716125501937,-500.0,0.00029933,2]
[327498203,1716125501947,-500.0,0.00029933,2]
[327498204,1716125501956,-500.0,0.00029933,2]
[327498205,1716125501965,-500.0,0.00029933,2]
[327498206,1716125501975,-500.0,0.00029933,2]
[327498207,1716125501984,-500.0,0.00029933,2]
[327498208,1716125501994,-500.0,0.00029933,2]
[327498209,1716125502004,-500.0,0.00029933,2]
[327498210,1716125502013,-500.0,0.00029933,2]
[327498211,1716125502023,-500.0,0.00029933,2]
[327498212,1716125502033,-500.0,0.00029933,2]
[327498213,1716125502042,-500.0,0.00029933,2]
[327498214,1716125502052,-500.0,0.00029933,2]
[327498215,1716125502062,-500.0,0.00029933,2]
[327498216,1716125502072,-500.0,0.00029933,2]
[327498217,1716125502083,-500.0,0.00029933,2]
[327498218,1716125502092,-500.0,0.00029933,2]
[327498219,1716125502102,-500.0,0.00029933,2]
[327498220,1716125502112,-500.0,0.00029933,2]
[327498221,1716125502122,-500.0,0.00029933,2]
[327498222,1716125502131,-500.0,0.00029933,2]
[327498223,1716125502140,-500.0,0.00029933,2]
[327498224,1716125502150,-500.0,0.00029933,2]
[327498225,1716125502159,-500.0,0.00029933,2]
[327498226,1716125502170,-500.0,0.00029933,2]
[327498227,1716125502181,-500.0,0.00029933,2]
[327498228,1716125502190,-500.0,0.00029933,2]
[327498229,1716125502200,-500.0,0.00029933,2]
[327498230,1716125502211,-500.0,0.00029933,2]
[327498231,1716125502220,-500.0,0.00029933,2]
[327498232,1716125502229,-500.0,0.00029933,2]
[327498233,1716125502239,-500.0,0.00029933,2]
[327498234,1716125502250,-500.0,0.00029933,2]
[327498235,1716125502260,-500.0,0.00029933,2]
[327498236,1716125502269,-500.0,0.00029933,2]
[327498237,1716125502278,-500.0,0.00029933,2]
[327498238,1716125502287,-500.0,0.00029933,2]
[327498239,1716125502296,-500.0,0.00029933,2]
[327498240,1716125502306,-500.0,0.00029933,2]
[327498241,1716125502315,-500.0,0.00029933,2]
[327498242,1716125502324,-500.0,0.00029933,2]
[327498243,1716125502336,-500.0,0.00029933,2]
[327498244,1716125502345,-500.0,0.00029933,2]
[327498245,1716125502354,-500.0,0.00029933,2]
[327498246,1716125502365,-500.0,0.00029933,2]
[327498247,1716125502374,-500.0,0.00029933,2]
[327498248,1716125502383,-500.0,0.00029933,2]
[327498249,1716125502392,-500.0,0.00029933,2]
[327498250,1716125502402,-500.0,0.00029933,2]
[327498251,1716125502411,-500.0,0.00029933,2]
[327498252,1716125502421,-500.0,0.00029933,2]
[327498253,1716125502431,-500.0,0.00029933,2]
[327498254,1716125502441,-500.0,0.00029933,2]
[327498255,1716125502450,-500.0,0.00029933,2]
[327498256,1716125502459,-500.0,0.00029933,2]
[327498257,1716125502469,-500.0,0.00029933,2]
[327498258,1716125502478,-500.0,0.00029933,2]
[327498259,1716125502488,-500.0,0.00029933,2]
[327498260,1716125502497,-500.0,0.00029933,2]
[327498261,1716125502507,-500.0,0.00029933,2]
[327498262,1716125502516,-500.0,0.00029933,2]
[327498263,1716125502526,-500.0,0.00029933,2]
[327498264,1716125502535,-500.0,0.00029933,2]
[327498265,1716125502545,-500.0,0.00029933,2]
[327498266,1716125502554,-500.0,0.00029933,2]
[327498267,1716125502564,-500.0,0.00029933,2]
[327498268,1716125502573,-500.0,0.00029933,2]
[327498269,1716125502587,-500.0,0.00029933,2]
[327498270,1716125502595,-500.0,0.00029933,2]
[327498271,1716125502604,-500.0,0.00029933,2]
[327498272,1716125502614,-500.0,0.00029933,2]
[327498273,1716125502622,-500.0,0.00029933,2]
[327498274,1716125502633,-500.0,0.00029933,2]
[327498275,1716125502642,-500.0,0.00029933,2]
[327498276,1716125502651,-500.0,0.00029933,2]
[327498277,1716125502661,-500.0,0.00029933,2]
[327498278,1716125502670,-500.0,0.00029933,2]
[327498279,1716125502680,-500.0,0.00029933,2]
[327498280,1716125502689,-500.0,0.00029933,2]
[327498281,1716125502699,-500.0,0.00029933,2]
[327498282,1716125502708,-500.0,0.00029933,2]
[327498283,1716125502718,-500.0,0.00029933,2]
[327498284,1716125502727,-500.0,0.00029933,2]
[327498285,1716125502736,-500.0,0.00029933,2]
[327498286,1716125502746,-500.0,0.00029933,2]
[327498287,1716125502756,-500.0,0.00029933,2]
[327498288,1716125502765,-500.0,0.00029933,2]
[327498289,1716125502774,-500.0,0.00029933,2]
[327498290,1716125502784,-500.0,0.00029933,2]
[327498291,1716125502794,-500.0,0.00029933,2]
[327498292,1716125502804,-500.0,0.00029933,2]
[327498293,1716125502814,-500.0,0.00029933,2]
[327498294,1716125502823,-500.0,0.00029933,2]
[327498295,1716125502833,-500.0,0.00029933,2]
[327498296,1716125502843,-500.0,0.00029933,2]
[327498297,1716125502852,-500.0,0.00029933,2]
[327498298,1716125502861,-500.0,0.00029933,2]
[327498299,1716125502871,-500.0,0.00029933,2]
[327498300,1716125502881,-500.0,0.00029933,2]
[327498301,1716125502892,-500.0,0.00029933,2]
[327498302,1716125502902,-500.0,0.00029933,2]
[327498303,1716125502911,-500.0,0.00029933,2]
[327498304,1716125502922,-500.0,0.00029933,2]
[327498305,1716125502932,-500.0,0.00029933,2]
[327498306,1716125502941,-500.0,0.00029933,2]
[327498307,1716125502951,-500.0,0.00029933,2]
[327498308,1716125502961,-500.0,0.00029933,2]
[327498309,1716125502971,-500.0,0.00029933,2]
[327498310,1716125502980,-500.0,0.00029933,2]
[327498311,1716125502990,-500.0,0.00029933,2]
[327498312,1716125503000,-500.0,0.00029933,2]
[327498313,1716125503010,-500.0,0.00029933,2]
[327498314,1716125503020,-500.0,0.00029933,2]
[327498315,1716125503030,-500.0,0.00029933,2]
[327498316,1716125503040,-500.0,0.00029933,2]
[327498317,1716125503049,-500.0,0.00029933,2]
[327498318,1716125503060,-500.0,0.00029933,2]
[327498319,1716125503070,-500.0,0.00029933,2]
[327498320,1716125503081,-500.0,0.00029933,2]
[327498321,1716125503090,-500.0,0.00029933,2]
[327498322,1716125503100,-500.0,0.00029933,2]
[327498323,1716125503111,-500.0,0.00029933,2]
[327498324,1716125503122,-500.0,0.00029933,2]
[327498325,1716125503132,-500.0,0.00029933,2]
[327498326,1716125503142,-500.0,0.00029933,2]
[327498327,1716125503156,-500.0,0.00029933,2]
[327498328,1716125503166,-500.0,0.00029933,2]
[327498329,1716125503179,-500.0,0.00029933,2]
[327498330,1716125503189,-500.0,0.00029933,2]
[327498331,1716125503198,-500.0,0.00029933,2]
[327498332,1716125503208,-500.0,0.00029933,2]
[327498333,1716125503218,-500.0,0.00029933,2]
[327498334,1716125503227,-500.0,0.00029933,2]
[327498335,1716125503236,-500.0,0.00029933,2]
[327498336,1716125503458,-500.0,0.00029933,2]
[327498337,1716125503469,-500.0,0.00029933,2]
[327498338,1716125503479,-500.0,0.00029933,2]
[327498339,1716125503489,-500.0,0.00029933,2]
[327498340,1716125503499,-500.0,0.00029933,2]
[327498341,1716125503508,-500.0,0.00029933,2]
[327498342,1716125503518,-500.0,0.00029933,2]
[327498343,1716125503527,-500.0,0.00029933,2]
[327498344,1716125503536,-500.0,0.00029933,2]